fUSD/lending_fUSD_20250208
["ID","MTS","AMOUNT","RATE_DAILY","PERIOD"]
[352357701,1739057432763,-420.0,9.718e-05,2]
[352357702,1739057432773,-200.0,9.723e-05,2]
[352357703,1739057432782,-156.55,9.724e-05,2]
[352357704,1739057432792,-250.0,9.742e-05,2]
[352357705,1739057432801,-23261.36,9.749e-05,2]
[352357706,1739057432811,-1000.0,9.789e-05,2]
[352357707,1739057432821,-300.0,9.853e-05,2]
[352357708,1739057432831,-1458.5222873,9.915e-05,2]
[352357709,1739057432843,-322.26793109,9.915e-05,2]
[352357710,1739057432855,-3600.50978161,9.915e-05,2]
[352357711,1739057432864,-500.0,9.953e-05,2]
[352357712,1739057432874,-172.7,0.0001007,2]
[352357713,1739057432884,-377.39,0.00010137,2]
[352357714,1739057432893,-1100.0,0.00010227,2]
[352357715,1739057432903,-500.0,0.00010227,2]
[352357716,1739057432913,-38.47021839,0.00010256,2]
[352357717,1739057432924,-149.84978161,0.00010256,2]
[352357718,1739057432934,-167.74,0.00010257,2]
[352357720,1739057432944,-150.0,0.00010277,2]
[352357722,1739057432953,-2604.11521839,0.00010278,2]
[352357724,1739057432965,-3517.25000014,0.00010278,2]
[352357727,1739057432976,-498.63478147,0.00010278,2]
[352357729,1739057432985,-587.0,0.0001069,2]
[352357730,1739057432995,-1000.0,0.000107,2]
[352357732,1739057433003,-150.0,0.00010704,2]
[352357734,1739057433013,-150.0,0.00010704,2]
[352357736,1739057433023,-115.61915922,0.00010704,2]
[352357737,1739057433034,-34.38084078,0.00010704,2]
[352357738,1739057433043,-150.0,0.0001071,2]
[352357739,1739057433052,-109.11878346,0.00010714,2]
[352357743,1739057433078,-890.88121654,0.00010714,2]
[352357744,1739057433088,-97.58678346,0.00010715,2]
[352357747,1739057433125,-52.41321654,0.00010715,2]
[352357748,1739057433214,-150.0,0.0001072,2]
[352357750,1739057433224,-150.0,0.00010726,2]
[352357752,1739057433234,-150.0,0.00010736,2]
[352357754,1739057433245,-190.74801469,0.00010739,2]
[352357756,1739057433255,-150.0,0.0001074,2]
[352357757,1739057433265,-150.0,0.00010742,2]
[352357758,1739057433275,-274.24489354,0.00010743,2]
[352357759,1739057433284,-150.0,0.00010745,2]
[352357760,1739057433294,-150.0,0.00010752,2]
[352357761,1739057433303,-150.0,0.00010753,2]
[352357762,1739057433313,-150.0,0.00010755,2]
[352357763,1739057433323,-150.0,0.00010756,2]
[352357764,1739057433333,-150.0,0.00010762,2]
[352357765,1739057433343,-150.0,0.00010762,2]
[352357766,1739057433352,-150.0,0.00010766,2]
[352357767,1739057433362,-150.0,0.0001077,2]
[352357768,1739057433371,-150.0,0.00010772,2]
[352357769,1739057433381,-1000.0,0.00010772,2]
[352357770,1739057433391,-150.0,0.00010772,2]
[352357771,1739057433400,-150.0,0.00010775,2]
[352357772,1739057433410,-150.0,0.00010776,2]
[352357773,1739057433419,-150.0,0.00010776,2]
[352357774,1739057433429,-150.0,0.00010781,2]
[352357775,1739057433438,-150.0,0.00010786,2]
[352357776,1739057433447,-150.0,0.00010792,2]
[352357777,1739057433457,-150.0,0.00010798,2]
[352357778,1739057433466,-150.0,0.00010799,2]
[352357779,1739057433476,-444.90199748,0.000108,2]
[352357780,1739057433485,-1000.0,0.000108,2]
[352357781,1739057433495,-150.0,0.00010806,2]
[352357782,1739057433504,-150.0,0.0001081,2]
[352357783,1739057433514,-150.0,0.00010815,2]
[352357784,1739057433524,-150.0,0.00010819,2]
[352357785,1739057433533,-150.0,0.00010822,2]
[352357786,1739057433543,-150.0,0.00010825,2]
[352357787,1739057433552,-150.0,0.00010828,2]
[352357788,1739057433562,-444.90199744,0.00010833,2]
[352357789,1739057433571,-150.0,0.00010834,2]
[352357790,1739057433581,-150.0,0.00010834,2]
[352357791,1739057433590,-150.0,0.00010836,2]
[352357792,1739057433599,-150.0,0.00010836,2]
[352357793,1739057433608,-448.56594258,0.00010838,2]
[352357794,1739057433617,-150.0,0.00010839,2]
[352357795,1739057433634,-150.0,0.00010841,2]
[352357796,1739057433644,-150.0,0.00010841,2]
[352357797,1739057433653,-150.0,0.00010842,2]
[352357798,1739057433661,-150.0,0.00010848,2]
[352357799,1739057433670,-150.0,0.00010852,2]
[352357800,1739057433680,-1000.0,0.00010853,2]
[352357801,1739057433689,-150.0,0.00010854,2]
[352357802,1739057433699,-150.0,0.00010855,2]
[352357803,1739057433709,-1826.0,0.00010858,2]
[352357804,1739057433719,-2953.0,0.00010858,2]
[352357805,1739057433728,-907.0,0.00010858,2]
[352357806,1739057433737,-1288.238,0.00010858,2]
[352357807,1739057433747,-783.0,0.00010858,2]
[352357808,1739057433756,-539.0,0.00010858,2]
[352357809,1739057433765,-4023.0,0.00010858,2]
[352357810,1739057433775,-1108.0,0.00010858,2]
[352357811,1739057433784,-3911.0,0.00010858,2]
[352357812,1739057433793,-150.0,0.00010858,2]
[352357813,1739057433803,-151.0,0.00010858,2]
[352357814,1739057433812,-1007.0,0.00010858,2]
[352357815,1739057433822,-150.0,0.00010858,2]
[352357816,1739057433831,-150.0,0.00010861,2]
[352357817,1739057433841,-150.0,0.00010862,2]
[352357818,1739057433851,-150.0,0.00010862,2]
[352357819,1739057433861,-150.0,0.00010863,2]
[352357820,1739057433870,-444.90199744,0.00010866,2]
[352357821,1739057433880,-150.0,0.00010868,2]
[352357822,1739057433889,-665.03417604,0.00010869,2]
[352357823,1739057433899,-155.09933296,0.00010869,2]
[352357824,1739057433908,-150.0,0.0001087,2]
[352357825,1739057433918,-150.0,0.0001087,2]
[352357826,1739057433927,-150.0,0.00010872,2]
[352357827,1739057433936,-1991.627,0.00010879,2]
[352357828,1739057433945,-160.842,0.00010879,2]
[352357829,1739057433955,-150.0,0.00010881,2]
[352357830,1739057433964,-150.0,0.00010888,2]
[352357831,1739057433973,-150.0,0.00010891,2]
[352357832,1739057433983,-150.0,0.00010892,2]
[352357833,1739057433992,-150.0,0.00010892,2]
[352357834,1739057434001,-232.65332889,0.00010898,2]
[352357835,1739057434011,-500.0,0.00010898,2]
[352357836,1739057434021,-500.0,0.00010898,2]
[352357837,1739057434030,-500.0,0.00010898,2]
[352357838,1739057434040,-336.91578,0.00010898,2]
[352357839,1739057434051,-500.0,0.00010898,2]
[352357840,1739057434061,-500.0,0.00010898,2]
[352357841,1739057434071,-500.0,0.00010898,2]
[352357842,1739057434080,-500.0,0.00010898,2]
[352357843,1739057434090,-500.0,0.00010898,2]
[352357844,1739057434099,-329.568657,0.00010898,2]
[352357845,1739057434109,-526.27,0.00010898,2]
[352357846,1739057434119,-500.0,0.00010898,2]
[352357847,1739057434128,-161.530035,0.00010898,2]
[352357848,1739057434138,-500.0,0.00010898,2]
[352357849,1739057434150,-500.0,0.00010898,2]
[352357850,1739057434159,-133.33449293,0.00010898,2]
[352357851,1739057438366,-639.21550707,0.00010898,2]
[352357852,1739057438376,-743.45,0.00010898,2]
[352357853,1739057438385,-760.61,0.00010898,2]
[352357854,1739057438395,-503.47,0.00010898,2]
[352357855,1739057438405,-810.67,0.00010898,2]
[352357856,1739057438414,-1323.14,0.00010898,2]
[352357857,1739057438423,-500.0,0.00010898,2]
[352357858,1739057438433,-500.0,0.00010898,2]
[352357859,1739057438444,-1830.03,0.00010898,2]
[352357860,1739057438453,-500.0,0.00010898,2]
[352357861,1739057438463,-500.0,0.00010898,2]
[352357862,1739057438473,-500.0,0.00010898,2]
[352357863,1739057438482,-821.64,0.00010898,2]
[352357864,1739057438492,-766.57,0.00010898,2]
[352357865,1739057438501,-650.28,0.00010898,2]
[352357866,1739057438511,-500.0,0.00010898,2]
[352357867,1739057438521,-550.2,0.00010898,2]
[352357868,1739057438532,-500.0,0.00010898,2]
[352357869,1739057438543,-500.0,0.00010898,2]
[352357870,1739057438553,-857.26,0.00010898,2]
[352357871,1739057438562,-641.98,0.00010898,2]
[352357872,1739057438572,-500.0,0.00010898,2]
[352357873,1739057438581,-500.0,0.00010898,2]
[352357874,1739057438591,-500.0,0.00010898,2]
[352357875,1739057438600,-500.0,0.00010898,2]
[352357876,1739057438609,-152.01023,0.00010898,2]
[352357877,1739057438620,-500.0,0.00010898,2]
[352357878,1739057438630,-787.32,0.00010898,2]
[352357879,1739057438639,-778.91,0.00010898,2]
[352357880,1739057438648,-167.594378,0.00010898,2]
[352357881,1739057438659,-500.0,0.00010898,2]
[352357883,1739057438668,-675.05,0.00010898,2]
[352357885,1739057438677,-500.0,0.00010898,2]
[352357887,1739057438687,-500.0,0.00010898,2]
[352357888,1739057438697,-1065.21,0.00010898,2]
[352357889,1739057438706,-654.35,0.00010898,2]
[352357890,1739057438715,-647.01,0.00010898,2]
[352357891,1739057438725,-500.0,0.00010898,2]
[352357892,1739057438734,-500.0,0.00010898,2]
[352357893,1739057438743,-500.0,0.00010898,2]
[352357894,1739057438753,-500.0,0.00010898,2]
[352357895,1739057438763,-500.0,0.00010898,2]
[352357896,1739057438772,-921.37,0.00010898,2]
[352357898,1739057438781,-606.21,0.00010898,2]
[352357900,1739057438790,-500.0,0.00010898,2]
[352357902,1739057438799,-500.0,0.00010898,2]
[352357904,1739057438808,-500.0,0.00010898,2]
[352357906,1739057438817,-500.0,0.00010898,2]
[352357908,1739057438827,-619.63,0.00010898,2]
[352357910,1739057438836,-500.0,0.00010898,2]
[352357912,1739057438847,-500.0,0.00010898,2]
[352357914,1739057438857,-611.46,0.00010898,2]
[352357916,1739057438866,-1265.75,0.00010898,2]
[352357918,1739057438875,-500.0,0.00010898,2]
[352357920,1739057438885,-500.0,0.00010898,2]
[352357922,1739057438894,-698.19,0.00010898,2]
[352357924,1739057438903,-500.0,0.00010898,2]
[352357926,1739057438912,-500.0,0.00010898,2]
[352357928,1739057438923,-500.0,0.00010898,2]
[352357930,1739057438933,-500.0,0.00010898,2]
[352357933,1739057438942,-500.0,0.00010898,2]
[352357935,1739057438952,-500.0,0.00010898,2]
[352357937,1739057438961,-500.0,0.00010898,2]
[352357939,1739057438970,-500.0,0.00010898,2]
[352357941,1739057438980,-500.0,0.00010898,2]
[352357943,1739057438989,-500.0,0.00010898,2]
[352357945,1739057438998,-500.0,0.00010898,2]
[352357947,1739057439007,-500.0,0.00010898,2]
[352357949,1739057439016,-155.177375,0.00010898,2]
[352357951,1739057439026,-554.12,0.00010898,2]
[352357953,1739057439035,-724.7,0.00010898,2]
[352357955,1739057439045,-500.0,0.00010898,2]
[352357957,1739057439054,-500.0,0.00010898,2]
[352357959,1739057439065,-544.71,0.00010899,2]
[352357961,1739057439074,-500.0,0.00010899,2]
[352357963,1739057439084,-500.0,0.00010899,2]
[352357965,1739057439094,-584.66,0.00010899,2]
[352357967,1739057439103,-500.0,0.00010899,2]
[352357969,1739057439112,-500.0,0.00010899,2]
[352357971,1739057439121,-500.0,0.00010899,2]
[352357973,1739057439130,-500.0,0.00010899,2]
[352357975,1739057439139,-500.0,0.00010899,2]
[352357977,1739057439152,-500.0,0.00010899,2]
[352357979,1739057439161,-500.0,0.00010899,2]
[352357981,1739057439171,-500.0,0.00010899,2]
[352357983,1739057439180,-500.0,0.00010899,2]
[352357985,1739057439190,-500.0,0.00010899,2]
[352357987,1739057439201,-500.0,0.00010899,2]
[352357989,1739057439210,-500.0,0.00010899,2]
[352357991,1739057439221,-500.0,0.00010899,2]
[352357993,1739057439232,-500.0,0.00010899,2]
[352357995,1739057439241,-500.0,0.00010899,2]
[352357997,1739057439250,-500.0,0.00010899,2]
[352357999,1739057439260,-500.0,0.00010899,2]
[352358001,1739057439269,-577.79,0.00010899,2]
[352358003,1739057439279,-500.0,0.00010899,2]
[352358005,1739057439289,-559.74,0.00010899,2]
[352358007,1739057439298,-500.0,0.00010899,2]
[352358009,1739057439308,-500.0,0.00010899,2]
[352358011,1739057439318,-500.0,0.00010899,2]
[352358013,1739057439327,-500.0,0.00010899,2]
[352358015,1739057439336,-500.0,0.00010899,2]
[352358017,1739057439346,-500.0,0.00010899,2]
[352358019,1739057439355,-500.0,0.00010899,2]
[352358021,1739057439364,-500.0,0.00010899,2]
[352358023,1739057439374,-500.0,0.00010899,2]
[352358025,1739057439383,-500.0,0.00010899,2]
[352358027,1739057439393,-500.0,0.00010899,2]
[352358029,1739057439402,-500.0,0.00010899,2]
[352358030,1739057439411,-500.0,0.00010899,2]
[352358033,1739057439421,-500.0,0.00010899,2]
[352358035,1739057439430,-500.0,0.00010899,2]
[352358037,1739057439441,-605.92,0.00010899,2]
[352358039,1739057439450,-500.0,0.00010899,2]
[352358041,1739057439459,-500.0,0.00010899,2]
[352358043,1739057439468,-495.16184736,0.00010899,2]
[352358045,1739057439477,-500.0,0.00010899,2]
[352358047,1739057439487,-646.29,0.00010899,2]
[352358049,1739057439497,-165.24,0.00010899,2]
[352358051,1739057439506,-506.18664595,0.00010899,2]
[352358053,1739057439515,-500.0,0.00010899,2]
[352358055,1739057439525,-500.0,0.00010899,2]
[352358057,1739057439534,-563.38510182,0.00010899,2]
[352358059,1739057439543,-500.0,0.00010899,2]
[352358061,1739057439552,-500.0,0.00010899,2]
[352358063,1739057439561,-500.0,0.00010899,2]
[352358065,1739057439570,-428.42,0.00010899,2]
[352358067,1739057439579,-500.0,0.00010899,2]
[352358068,1739057439590,-644.95184396,0.00010899,2]
[352358070,1739057439599,-500.0,0.00010899,2]
[352358072,1739057439609,-500.0,0.00010899,2]
[352358074,1739057439618,-500.0,0.00010899,2]
[352358076,1739057439627,-500.0,0.00010899,2]
[352358078,1739057439637,-500.0,0.00010899,2]
[352358080,1739057439647,-500.0,0.00010899,2]
[352358082,1739057439656,-500.0,0.00010899,2]
[352358084,1739057439666,-500.0,0.00010899,2]
[352358086,1739057439675,-500.0,0.00010899,2]
[352358088,1739057439684,-500.0,0.00010899,2]
[352358090,1739057439694,-575.05906855,0.00010899,2]
[352358092,1739057439703,-500.0,0.00010899,2]
[352358094,1739057439713,-500.0,0.00010899,2]
[352358096,1739057439723,-500.0,0.00010899,2]
[352358099,1739057439732,-500.0,0.00010899,2]
[352358100,1739057439742,-500.0,0.00010899,2]
[352358102,1739057439751,-500.0,0.00010899,2]
[352358104,1739057439761,-500.0,0.00010899,2]
[352358107,1739057439771,-500.0,0.00010899,2]
[352358108,1739057439780,-581.82,0.00010899,2]
[352358110,1739057439790,-500.0,0.00010899,2]
[352358112,1739057439799,-632.16,0.00010899,2]
[352358114,1739057439809,-500.0,0.00010899,2]
[352358116,1739057439818,-500.0,0.00010899,2]
[352358118,1739057439827,-500.0,0.00010899,2]
[352358121,1739057439837,-500.0,0.00010899,2]
[352358123,1739057439847,-500.0,0.00010899,2]
[352358125,1739057439856,-500.0,0.00010899,2]
[352358127,1739057439865,-500.0,0.00010899,2]
[352358129,1739057439875,-500.0,0.00010899,2]
[352358131,1739057439883,-500.0,0.00010899,2]
[352358133,1739057439892,-500.0,0.00010899,2]
[352358134,1739057439902,-500.0,0.00010899,2]
[352358136,1739057439916,-500.0,0.00010899,2]
[352358139,1739057439927,-500.0,0.00010899,2]
[352358140,1739057439936,-500.0,0.00010899,2]
[352358142,1739057439945,-500.0,0.00010899,2]
[352358144,1739057439954,-500.0,0.00010899,2]
[352358146,1739057439963,-500.0,0.00010899,2]
[352358149,1739057439972,-500.0,0.00010899,2]
[352358150,1739057439981,-500.0,0.00010899,2]
[352358152,1739057439990,-500.0,0.00010899,2]
[352358154,1739057439999,-500.0,0.00010899,2]
[352358156,1739057440008,-500.0,0.00010899,2]
[352358158,1739057440017,-500.0,0.00010899,2]
[352358159,1739057440026,-500.0,0.00010899,2]
[352358160,1739057440035,-500.0,0.00010899,2]
[352358161,1739057440044,-544.02,0.00010899,2]
[352358162,1739057440054,-500.0,0.00010899,2]
[352358163,1739057440063,-453.98,0.00010899,2]
[352358164,1739057440072,-500.0,0.00010899,2]
[352358165,1739057440081,-500.0,0.00010899,2]
[352358166,1739057440090,-500.0,0.00010899,2]
[352358167,1739057440100,-500.0,0.00010899,2]
[352358168,1739057440109,-500.0,0.00010899,2]
[352358169,1739057440118,-500.0,0.00010899,2]
[352358170,1739057440127,-500.0,0.00010899,2]
[352358171,1739057440136,-500.0,0.00010899,2]
[352358172,1739057440145,-500.0,0.00010899,2]
[352358173,1739057440158,-500.0,0.00010899,2]
[352358174,1739057440167,-500.0,0.00010899,2]
[352358175,1739057440175,-500.0,0.00010899,2]
[352358177,1739057440185,-500.0,0.00010899,2]
[352358179,1739057440194,-500.0,0.00010899,2]
[352358181,1739057440203,-500.0,0.00010899,2]
[352358183,1739057440212,-500.0,0.00010899,2]
[352358185,1739057440221,-500.0,0.00010899,2]
[352358187,1739057440230,-500.0,0.00010899,2]
[352358189,1739057440239,-500.0,0.00010899,2]
[352358191,1739057440248,-500.0,0.00010899,2]
[352358193,1739057440258,-500.0,0.00010899,2]
[352358195,1739057440267,-500.0,0.00010899,2]
[352358197,1739057440276,-500.0,0.00010899,2]
[352358199,1739057440285,-585.33,0.00010899,2]
[352358201,1739057440294,-500.0,0.00010899,2]
[352358203,1739057440303,-500.0,0.00010899,2]
[352358205,1739057440312,-500.0,0.00010899,2]
[352358207,1739057440321,-288.06766098,0.00010899,2]
[352358209,1739057440330,-500.0,0.00010899,2]
[352358211,1739057440339,-500.0,0.00010899,2]
[352358213,1739057440348,-500.0,0.00010899,2]
[352358215,1739057440357,-500.0,0.00010899,2]
[352358217,1739057440366,-500.0,0.00010899,2]
[352358219,1739057440374,-433.13096352,0.00010899,2]
[352358223,1739057440405,-622.44,0.00010898,2]
[352358225,1739057440414,-66.86903648,0.00010899,2]
[352358227,1739057440423,-500.0,0.00010899,2]
[352358229,1739057440432,-500.0,0.00010899,2]
[352358231,1739057440442,-500.0,0.00010899,2]
[352358233,1739057440451,-500.0,0.00010899,2]
[352358235,1739057440460,-500.0,0.00010899,2]
[352358237,1739057440469,-500.0,0.00010899,2]
[352358239,1739057440478,-500.0,0.00010899,2]
[352358241,1739057440487,-500.0,0.00010899,2]
[352358243,1739057440498,-500.0,0.00010899,2]
[352358245,1739057440507,-500.0,0.00010899,2]
[352358247,1739057440517,-500.0,0.00010899,2]
[352358249,1739057440526,-500.0,0.00010899,2]
[352358251,1739057440535,-500.0,0.00010899,2]
[352358253,1739057440545,-500.0,0.00010899,2]
[352358255,1739057440554,-500.0,0.00010899,2]
[352358257,1739057440563,-500.0,0.00010899,2]
[352358259,1739057440572,-623.8,0.00010899,2]
[352358261,1739057440581,-500.0,0.00010899,2]
[352358263,1739057440590,-500.0,0.00010899,2]
[352358265,1739057440599,-500.0,0.00010899,2]
[352358267,1739057440608,-500.0,0.00010899,2]
[352358269,1739057440618,-500.0,0.00010899,2]
[352358271,1739057440627,-248.79,0.00010899,2]
[352358273,1739057440636,-500.0,0.00010899,2]
[352358275,1739057440646,-500.0,0.00010899,2]
[352358277,1739057440655,-538.76,0.00010899,2]
[352358279,1739057440664,-500.0,0.00010899,2]
[352358281,1739057440673,-500.0,0.00010899,2]
[352358283,1739057440682,-500.0,0.00010899,2]
[352358285,1739057440691,-500.0,0.00010899,2]
[352358287,1739057440701,-638.27,0.00010899,2]
[352358289,1739057440710,-500.0,0.00010899,2]
[352358291,1739057440719,-500.0,0.00010899,2]
[352358293,1739057440728,-500.0,0.00010899,2]
[352358295,1739057440737,-500.0,0.00010899,2]
[352358297,1739057440746,-500.0,0.00010899,2]
[352358299,1739057440755,-297.92,0.00010899,2]
[352358301,1739057440764,-500.0,0.00010899,2]
[352358303,1739057440773,-500.0,0.00010899,2]
[352358304,1739057440782,-500.0,0.00010899,2]
[352358306,1739057440791,-561.15,0.00010899,2]
[352358308,1739057440802,-586.81431432,0.00010899,2]
[352358310,1739057440813,-500.0,0.00010899,2]
[352358312,1739057440822,-500.0,0.00010899,2]
[352358314,1739057440831,-500.0,0.00010899,2]
[352358316,1739057440840,-500.0,0.00010899,2]
[352358318,1739057440849,-500.0,0.00010899,2]
[352358320,1739057440859,-590.74,0.00010899,2]
[352358322,1739057440874,-500.0,0.00010899,2]
[352358324,1739057440883,-500.0,0.00010899,2]
[352358326,1739057440892,-500.0,0.00010899,2]
[352358328,1739057440901,-500.0,0.00010899,2]
[352358330,1739057440909,-500.0,0.00010899,2]
[352358332,1739057440918,-500.0,0.00010899,2]
[352358334,1739057440927,-500.0,0.00010899,2]
[352358336,1739057440936,-500.0,0.00010899,2]
[352358338,1739057440945,-500.0,0.00010899,2]
[352358340,1739057440954,-500.0,0.00010899,2]
[352358342,1739057440963,-500.0,0.00010899,2]
[352358344,1739057440972,-500.0,0.00010899,2]
[352358346,1739057440981,-500.0,0.00010899,2]
[352358348,1739057440990,-509.95,0.00010899,2]
[352358350,1739057440999,-500.0,0.00010899,2]
[352358352,1739057441008,-500.0,0.00010899,2]
[352358354,1739057441017,-500.0,0.00010899,2]
[352358356,1739057441026,-500.0,0.00010899,2]
[352358358,1739057441035,-500.0,0.00010899,2]
[352358360,1739057441044,-500.0,0.00010899,2]
[352358362,1739057441053,-500.0,0.00010899,2]
[352358364,1739057441063,-500.0,0.00010899,2]
[352358366,1739057441072,-500.0,0.00010899,2]
[352358368,1739057441081,-500.0,0.00010899,2]
[352358370,1739057441090,-500.0,0.00010899,2]
[352358372,1739057441099,-500.0,0.00010899,2]
[352358374,1739057441108,-500.0,0.00010899,2]
[352358376,1739057441117,-500.0,0.00010899,2]
[352358378,1739057441126,-500.0,0.00010899,2]
[352358380,1739057441135,-500.0,0.00010899,2]
[352358382,1739057441144,-500.0,0.00010899,2]
[352358384,1739057441159,-500.0,0.00010899,2]
[352358386,1739057441169,-500.0,0.00010899,2]
[352358388,1739057441178,-500.0,0.00010899,2]
[352358390,1739057441187,-500.0,0.00010899,2]
[352358392,1739057441198,-500.0,0.00010899,2]
[352358394,1739057441207,-500.0,0.00010899,2]
[352358396,1739057441216,-500.0,0.00010899,2]
[352358398,1739057441226,-500.0,0.00010899,2]
[352358400,1739057441236,-500.0,0.00010899,2]
[352358402,1739057441245,-380.26494835,0.00010899,2]
[352358404,1739057441254,-500.0,0.00010899,2]
[352358406,1739057441263,-500.0,0.00010899,2]
[352358408,1739057441271,-500.0,0.00010899,2]
[352358409,1739057441280,-223.66991468,0.00010899,2]
[352358411,1739057441290,-500.0,0.00010899,2]
[352358414,1739057441299,-500.0,0.00010899,2]
[352358416,1739057441309,-521.85,0.00010899,2]
[352358418,1739057441318,-500.0,0.00010899,2]
[352358420,1739057441328,-500.0,0.00010899,2]
[352358422,1739057441337,-500.0,0.00010899,2]
[352358424,1739057441346,-500.0,0.00010899,2]
[352358425,1739057441355,-500.0,0.00010899,2]
[352358427,1739057441364,-240.58585301,0.00010899,2]
[352358429,1739057441374,-500.0,0.00010899,2]
[352358432,1739057441383,-519.18942784,0.00010899,2]
[352358434,1739057441393,-500.0,0.00010899,2]
[352358436,1739057441402,-500.0,0.00010899,2]
[352358437,1739057441411,-500.0,0.00010899,2]
[352358439,1739057441420,-500.0,0.00010899,2]
[352358442,1739057441430,-500.0,0.00010899,2]
[352358444,1739057441439,-500.0,0.00010899,2]
[352358446,1739057441448,-604.06789634,0.00010899,2]
[352358448,1739057441457,-500.0,0.00010899,2]
[352358470,1739057441655,-500.0,0.00010899,2]
[352358472,1739057441664,-500.0,0.00010899,2]
[352358474,1739057441673,-500.0,0.00010899,2]
[352358476,1739057441682,-500.0,0.00010899,2]
[352358478,1739057441691,-500.0,0.00010899,2]
[352358480,1739057441700,-500.0,0.00010899,2]
[352358482,1739057441709,-500.0,0.00010899,2]
[352358484,1739057441718,-544.19,0.00010899,2]
[352358486,1739057441727,-500.0,0.00010899,2]
[352358488,1739057441737,-500.0,0.00010899,2]
[352358490,1739057441746,-500.0,0.00010899,2]
[352358492,1739057441755,-500.0,0.00010899,2]
[352358494,1739057441765,-500.0,0.00010899,2]
[352358496,1739057441774,-500.0,0.00010899,2]
[352358498,1739057441784,-500.0,0.00010899,2]
[352358500,1739057441794,-500.0,0.00010899,2]
[352358502,1739057441803,-408.54,0.00010899,2]
[352358504,1739057441812,-555.61,0.00010899,2]
[352358506,1739057441821,-500.0,0.00010899,2]
[352358508,1739057441831,-500.0,0.00010899,2]
[352358510,1739057441840,-389.67,0.00010899,2]
[352358512,1739057441849,-500.0,0.00010899,2]
[352358514,1739057441859,-500.0,0.00010899,2]
[352358516,1739057441868,-500.0,0.00010899,2]
[352358518,1739057441877,-500.0,0.00010899,2]
[352358520,1739057441886,-500.0,0.00010899,2]
[352358522,1739057441895,-500.0,0.00010899,2]
[352358524,1739057441904,-500.0,0.00010899,2]
[352358526,1739057441914,-500.0,0.00010899,2]
[352358528,1739057441926,-500.0,0.00010899,2]
[352358530,1739057441935,-500.0,0.00010899,2]
[352358532,1739057441944,-500.0,0.00010899,2]
[352358534,1739057441953,-500.0,0.00010899,2]
[352358536,1739057441964,-473.2,0.00010899,2]
[352358538,1739057441977,-500.0,0.00010899,2]
[352358540,1739057441988,-500.0,0.00010899,2]
[352358542,1739057442001,-500.0,0.00010899,2]
[352358544,1739057442011,-500.0,0.00010899,2]
[352358546,1739057442021,-425.82,0.00010899,2]
[352358548,1739057442030,-500.0,0.00010899,2]
[352358550,1739057442039,-500.0,0.00010899,2]